bitfinex-derivatives/quotes_BTCF0:USTF0_20241224
["timestamp","ask_amount","ask_price","bid_price","bid_amount"]
[1735070341638,0.051226,97660.0,97650.0,0.36802613]
[1735070341845,0.051226,97660.0,97654.0,0.36746613]
[1735070341846,0.41522684,97660.0,97654.0,0.36746613]
[1735070342143,0.051228,97655.0,97654.0,0.22036613]
[1735070342339,0.05124,97632.0,97631.0,0.00153646]
[1735070342535,0.41534091,97632.0,97631.0,0.00153646]
[1735070342740,0.42205202,97632.0,97631.0,0.00153646]
[1735070342937,0.06125202,97632.0,97631.0,0.00153646]
[1735070343339,0.06125202,97632.0,97631.0,0.05353883]
[1735070343647,0.47512298,97632.0,97631.0,0.00853646]
[1735070343851,0.4862068,97632.0,97631.0,0.00853646]
[1735070344350,0.4862068,97632.0,97631.0,0.01253646]
[1735070344749,0.48640052,97632.0,97631.0,0.01253646]
[1735070345047,0.58396971,97632.0,97631.0,0.01253646]
[1735070345249,0.58396971,97632.0,97631.0,0.011]
[1735070346240,0.38308956,97632.0,97615.0,0.145949]
[1735070346442,0.051242,97630.0,97615.0,0.145949]
[1735070346652,0.01011955,97629.0,97618.0,0.051248]
[1735070346954,0.01011955,97628.0,97627.0,0.051243]
[1735070347148,0.36190007,97632.0,97627.0,0.051243]
[1735070347348,0.11949184,97631.0,97627.0,0.051243]
[1735070347648,0.11949184,97631.0,97622.0,0.34264171]
[1735070347840,0.11949184,97631.0,97630.0,0.051241]
[1735070348039,0.3608,97664.0,97630.0,0.3608]
[1735070348239,0.14929338,97651.0,97649.0,0.051231]
[1735070348445,0.14929338,97651.0,97650.0,0.0888]
[1735070348649,0.15249598,97651.0,97647.0,0.34709501]
[1735070348842,0.0032026,97650.0,97649.0,0.051231]
[1735070349252,0.0032026,97650.0,97643.0,0.051234]
[1735070349461,0.0032026,97649.0,97643.0,0.051234]
[1735070349659,0.0032026,97648.0,97638.0,0.3608]
[1735070349859,0.0032026,97647.0,97638.0,0.3608]
[1735070350158,0.0032026,97646.0,97641.0,0.051236]
[1735070350361,0.0032026,97645.0,97641.0,0.051236]
[1735070350562,0.0032026,97649.0,97641.0,0.051236]
[1735070350764,0.0032026,97648.0,97641.0,0.051236]
[1735070350963,0.0032026,97647.0,97641.0,0.051236]
[1735070351163,0.0032026,97649.0,97648.0,0.051232]
[1735070351364,0.0032026,97649.0,97648.0,0.412032]
[1735070351567,0.002,97649.0,97648.0,0.412032]
[1735070352064,0.0032026,97656.0,97649.0,0.051231]
[1735070352366,0.0032026,97655.0,97649.0,0.051231]
[1735070352562,0.0032026,97654.0,97649.0,0.051231]
[1735070352751,0.0032026,97653.0,97649.0,0.051231]
[1735070352959,0.0032026,97652.0,97650.0,0.051231]
[1735070353164,0.005,97656.0,97652.0,0.05123]
[1735070353351,0.0032026,97655.0,97652.0,0.05123]
[1735070353557,0.0032026,97654.0,97652.0,0.05123]
[1735070353757,0.0032026,97653.0,97652.0,0.05123]
[1735070353953,0.0032026,97655.0,97652.0,0.05123]
[1735070354166,0.0032026,97654.0,97652.0,0.05123]
[1735070354362,0.0032026,97655.0,97652.0,0.05123]
[1735070354566,0.0032026,97654.0,97652.0,0.05123]
[1735070354771,0.0072026,97653.0,97652.0,0.05123]
[1735070355065,0.004,97653.0,97652.0,0.05123]
[1735070355268,0.0032026,97653.0,97652.0,0.05123]
[1735070356067,0.0082026,97653.0,97652.0,0.05123]
[1735070356771,0.0062026,97653.0,97652.0,0.05123]
[1735070356956,0.0072026,97653.0,97652.0,0.05123]
[1735070357564,0.05123,97652.0,97651.0,0.0341738]
[1735070357773,0.0544326,97652.0,97648.0,0.3608]
[1735070357961,0.0032026,97651.0,97649.0,0.051231]
[1735070358164,0.0032026,97650.0,97649.0,0.051231]
[1735070359662,0.0052026,97650.0,97649.0,0.051231]
[1735070360570,0.00520188,97650.0,97649.0,0.052231]
[1735070361271,0.00320188,97650.0,97649.0,0.053231]
[1735070361960,0.00320188,97650.0,97649.0,0.052231]
[1735070362366,0.00420188,97650.0,97649.0,0.051231]
[1735070362974,0.00520188,97650.0,97648.0,0.03495365]
[1735070363271,0.00320188,97649.0,97648.0,0.03443365]
[1735070363470,0.051233,97646.0,97643.0,0.0887]
[1735070364859,0.004,97649.0,97642.0,0.0953]
[1735070365174,0.051234,97645.0,97642.0,0.0953]
[1735070365877,0.00320235,97644.0,97642.0,0.13056678]
[1735070366066,0.05443635,97644.0,97642.0,0.13056678]
[1735070366369,0.05798321,97644.0,97642.0,0.13056678]
[1735070366765,0.05798321,97644.0,97642.0,0.13156678]
[1735070367869,0.051234,97644.0,97642.0,0.13156678]
[1735070368573,0.051234,97644.0,97642.0,0.03626678]
[1735070368771,0.051234,97644.0,97642.0,0.03526678]
[1735070369075,0.052234,97644.0,97642.0,0.001]
[1735070370067,0.00674177,97643.0,97642.0,0.001]
[1735070371373,0.00774177,97643.0,97642.0,0.001]
[1735070371976,0.01094427,97643.0,97642.0,0.001]
[1735070372866,0.0042025,97643.0,97642.0,0.001]
[1735070373080,0.01595309,97643.0,97642.0,0.001]
[1735070374577,0.01795309,97643.0,97637.0,0.051238]
[1735070374884,0.00995309,97642.0,97637.0,0.051238]
[1735070375075,0.00995309,97641.0,97637.0,0.051238]
[1735070375272,0.00995309,97640.0,97637.0,0.051238]
[1735070375480,0.00995309,97639.0,97637.0,0.051238]
[1735070375680,0.00995309,97638.0,97637.0,0.051238]
[1735070376086,0.00995991,97638.0,97637.0,0.412038]
[1735070378384,0.06194638,97638.0,97637.0,0.412038]
[1735070378580,0.06594638,97638.0,97637.0,0.412038]
[1735070379475,0.06194638,97638.0,97637.0,0.412038]
[1735070379671,0.06595786,97638.0,97637.0,0.412038]
[1735070379874,0.06595786,97638.0,97637.0,0.24806952]
[1735070380180,0.16529022,97638.0,97637.0,0.24806952]
[1735070380381,0.16529022,97638.0,97637.0,0.051238]
[1735070381682,0.15708775,97638.0,97637.0,0.051238]
[1735070381884,0.01597149,97638.0,97637.0,0.051238]
[1735070382286,0.01596299,97638.0,97637.0,0.051238]
[1735070382488,0.01496299,97638.0,97637.0,0.051238]
[1735070382790,0.01696299,97638.0,97637.0,0.051238]
[1735070383103,0.10939822,97650.0,97637.0,0.712038]
[1735070383289,0.051223,97666.0,97652.0,0.3608]
[1735070383480,0.051223,97666.0,97658.0,0.051227]
[1735070383882,0.051223,97666.0,97661.0,0.051225]
[1735070384185,0.3608,97665.0,97661.0,0.051225]
[1735070384384,0.051223,97666.0,97661.0,0.051225]
[1735070384992,0.057223,97666.0,97661.0,0.051225]
[1735070385376,0.057223,97666.0,97653.0,0.274]
[1735070385377,0.3608,97665.0,97653.0,0.1843]
[1735070385582,0.051225,97662.0,97661.0,0.001]
[1735070387288,0.10102844,97662.0,97661.0,0.001]
[1735070387688,0.051229,97654.0,97653.0,0.03418856]
[1735070387890,0.051232,97649.0,97642.0,0.051235]
[1735070388295,0.051232,97649.0,97640.0,0.28431465]
[1735070388595,0.051232,97649.0,97646.0,0.051233]
[1735070388787,0.051232,97649.0,97640.0,0.31835297]
[1735070388993,0.056232,97649.0,97642.0,0.001]
[1735070389384,0.056232,97649.0,97640.0,0.31887297]
[1735070389591,0.055232,97649.0,97641.0,0.051235]
[1735070390392,0.058232,97649.0,97641.0,0.051235]
[1735070391196,0.058232,97649.0,97642.0,0.001]
[1735070391695,0.058232,97649.0,97641.0,0.051235]
[1735070392392,0.051233,97647.0,97642.0,0.001]
[1735070392593,0.051235,97643.0,97642.0,0.001]
[1735070392898,0.051235,97643.0,97640.0,0.21833832]
[1735070394486,0.052235,97643.0,97640.0,0.21833832]
[1735070395095,0.052235,97643.0,97642.0,0.001]
[1735070395295,0.06213209,97643.0,97642.0,0.001]
[1735070395500,0.051236,97641.0,97640.0,0.13013832]
[1735070395688,0.06113309,97641.0,97640.0,0.13013832]
[1735070396294,0.06113309,97641.0,97627.0,0.1872]
[1735070396594,0.051242,97630.0,97627.0,0.1872]
[1735070396896,0.00989709,97629.0,97627.0,0.1872]
[1735070397096,0.00989709,97628.0,97627.0,0.1872]
[1735070398102,0.0098972,97628.0,97627.0,0.03916817]
[1735070398892,0.3706972,97628.0,97627.0,0.03916817]
[1735070399695,0.3706972,97628.0,97612.0,0.36132]
[1735070399696,0.6706972,97628.0,97612.0,0.00052]
[1735070399895,0.051256,97602.0,97600.0,0.20001465]
[1735070400086,0.00989456,97601.0,97600.0,0.13467576]
[1735070400688,0.01561232,97618.0,97600.0,0.49547576]
[1735070400897,0.3608,97624.0,97612.0,0.005]
[1735070401395,0.05125,97613.0,97612.0,0.005]
[1735070401599,0.051245,97624.0,97608.0,0.10001465]
[1735070401798,0.051252,97609.0,97608.0,0.10001465]
[1735070402104,0.3608,97625.0,97610.0,0.051252]
[1735070402295,0.1821,97630.0,97617.0,0.051248]
[1735070402296,0.051245,97623.0,97617.0,0.051248]
[1735070402595,0.412042,97629.0,97615.0,0.10001465]
[1735070402798,0.36208,97638.0,97615.0,0.10001465]
[1735070402799,0.3608,97638.0,97619.0,0.10001465]
[1735070403004,0.3608,97639.0,97625.0,0.10001465]
[1735070403196,0.01563481,97640.0,97637.0,0.051238]
[1735070403396,0.412033,97647.0,97625.0,0.15125865]
[1735070403600,0.3608,97639.0,97630.0,0.10001465]
[1735070403799,0.3608,97639.0,97636.0,0.051238]
[1735070404098,0.3608,97639.0,97630.0,0.10001465]
[1735070404300,0.3608,97639.0,97638.0,0.051237]
[1735070405007,0.3628,97639.0,97638.0,0.051237]
[1735070405309,0.18012936,97656.0,97655.0,0.051228]
[1735070405807,0.18012936,97656.0,97655.0,0.412028]
[1735070406595,0.211972,97677.0,97676.0,0.051217]
[1735070406799,0.01563481,97681.0,97676.0,0.051217]
[1735070406800,0.01563481,97681.0,97680.0,0.051215]
[1735070407004,0.21073199,97695.0,97694.0,0.051208]
[1735070407208,0.21073199,97695.0,97694.0,0.412008]
[1735070407405,0.21073199,97695.0,97694.0,0.051208]
[1735070408500,0.08997936,97701.0,97697.0,0.051206]
[1735070408699,0.08997936,97701.0,97699.0,0.3608]
[1735070408902,0.08997936,97701.0,97699.0,0.412005]
[1735070409913,0.08997936,97713.0,97699.0,0.412005]
[1735070410107,0.051199,97712.0,97699.0,0.412005]
[1735070410709,0.009,97701.0,97700.0,0.10001465]
[1735070410909,0.009,97701.0,97697.0,0.001]
[1735070411110,0.051203,97703.0,97691.0,0.15122365]
[1735070411307,0.051203,97703.0,97699.0,0.001]
[1735070411507,0.051203,97703.0,97702.0,0.3608]
[1735070412112,0.051203,97703.0,97691.0,0.12997192]
[1735070412318,0.006,97703.0,97691.0,0.12997192]
[1735070412515,0.051205,97701.0,97691.0,0.12997192]
[1735070412717,0.00978463,97700.0,97691.0,0.12997192]
[1735070412920,0.00320069,97699.0,97696.0,0.3608]
[1735070413123,0.00320069,97698.0,97696.0,0.412006]
[1735070413413,0.01,97703.0,97696.0,0.3608]
[1735070413614,0.004,97703.0,97691.0,0.02995727]
[1735070413806,0.013,97703.0,97690.0,0.10001465]
[1735070414010,0.051211,97689.0,97686.0,0.3608]
[1735070414211,0.051211,97688.0,97686.0,0.3608]
[1735070414414,0.00657981,97687.0,97671.0,0.34428]
[1735070414611,0.051216,97679.0,97671.0,0.37426981]
[1735070414812,0.00657981,97678.0,97671.0,0.34484]
[1735070415015,0.00657981,97678.0,97671.0,0.34428]
[1735070415016,0.051218,97675.0,97671.0,0.34428]
[1735070415208,0.00512257,97681.0,97671.0,0.34428]
[1735070415408,0.3608,97683.0,97667.0,0.3608]
[1735070415409,0.01166572,97682.0,97667.0,0.3608]
[1735070415609,0.051221,97669.0,97667.0,0.3608]
[1735070416114,0.3608,97675.0,97650.0,0.0261003]
[1735070416115,0.051227,97659.0,97650.0,0.0261003]
[1735070416511,0.051227,97658.0,97650.0,0.0261003]
[1735070416703,0.051227,97658.0,97648.0,0.46081465]
[1735070417906,0.00655044,97657.0,97648.0,0.3608]
[1735070418217,0.00655044,97657.0,97644.0,0.34416]
[1735070420116,0.01863383,97657.0,97656.0,0.001]
[1735070420313,0.06986083,97657.0,97656.0,0.001]
[1735070420714,0.051234,97645.0,97644.0,0.34416]
[1735070420915,0.05779503,97645.0,97644.0,0.34416]
[1735070421413,0.00656103,97645.0,97644.0,0.395394]
[1735070421622,0.3608,97653.0,97651.0,0.05123]
[1735070421920,0.00508339,97657.0,97656.0,0.051228]
[1735070422511,0.00608339,97657.0,97656.0,0.052228]
[1735070424013,0.01508339,97657.0,97656.0,0.053228]
[1735070424319,0.00908339,97657.0,97656.0,0.052228]
[1735070424519,0.00508339,97657.0,97656.0,0.051228]
[1735070425319,0.00828525,97657.0,97656.0,0.051228]
[1735070425913,0.00928525,97657.0,97652.0,0.3608]
[1735070426114,0.00320186,97656.0,97649.0,0.07640602]
[1735070426419,0.00320186,97655.0,97649.0,0.07640602]
[1735070426724,0.00320186,97654.0,97649.0,0.07640602]
[1735070426913,0.00408339,97657.0,97653.0,0.3608]
[1735070427114,0.00320195,97656.0,97653.0,0.3608]
[1735070427315,0.00320195,97655.0,97653.0,0.3608]
[1735070427624,0.002,97656.0,97649.0,0.02517502]
[1735070427625,0.00320195,97654.0,97649.0,0.02517502]
[1735070427919,0.05123,97652.0,97644.0,0.34416]
[1735070428135,0.00320195,97651.0,97644.0,0.34416]
[1735070428319,0.00320195,97650.0,97644.0,0.34416]
[1735070428519,0.00320195,97649.0,97644.0,0.34416]
[1735070428719,0.00320195,97650.0,97644.0,0.34416]
[1735070428924,0.00320195,97650.0,97649.0,0.3608]
[1735070430021,0.00320211,97650.0,97649.0,0.3608]
[1735070430218,0.00320211,97650.0,97648.0,0.051232]
[1735070430418,0.00320211,97649.0,97648.0,0.051232]
[1735070431229,0.00320211,97649.0,97648.0,0.3608]
[1735070431522,0.00978197,97649.0,97648.0,0.3608]
[1735070432228,0.06101297,97649.0,97648.0,0.3608]
[1735070432823,0.06701297,97649.0,97648.0,0.3618]
[1735070433129,0.06801297,97649.0,97648.0,0.3618]
[1735070433519,0.06800519,97649.0,97648.0,0.3618]
[1735070433723,0.06700519,97649.0,97648.0,0.3618]
[1735070433924,0.07000519,97649.0,97648.0,0.3618]
[1735070434635,0.07100519,97649.0,97648.0,0.3618]
[1735070435230,0.06800519,97649.0,97648.0,0.3618]
[1735070435426,0.07000519,97649.0,97648.0,0.3618]
[1735070435926,8.339e-05,97657.0,97656.0,0.051228]
[1735070436116,0.08997936,97661.0,97660.0,0.051226]
[1735070436823,0.051222,97667.0,97660.0,0.051226]
[1735070437023,6.119e-05,97666.0,97660.0,0.051226]
[1735070437225,0.001,97661.0,97660.0,0.051226]
[1735070437828,0.005,97661.0,97660.0,0.051226]
[1735070438028,0.005,97661.0,97657.0,0.091]
[1735070438230,0.051227,97659.0,97657.0,0.091]
[1735070438431,0.051227,97657.0,97656.0,0.3608]
[1735070438620,0.051229,97653.0,97652.0,0.38676855]
[1735070438830,0.051229,97653.0,97652.0,0.3608]
[1735070439834,0.051229,97653.0,97649.0,0.0259917]
[1735070440033,0.051229,97653.0,97645.0,0.051233]
[1735070440337,0.052229,97653.0,97645.0,0.051233]
[1735070441132,0.001,97653.0,97652.0,0.3608]
[1735070442133,0.002,97653.0,97652.0,0.3608]
[1735070442332,0.001,97653.0,97652.0,0.3608]
[1735070442524,0.002,97653.0,97652.0,0.3608]
[1735070442929,0.003,97653.0,97652.0,0.3608]
[1735070443438,0.001,97653.0,97652.0,0.3608]
[1735070443637,0.003,97653.0,97652.0,0.3608]
[1735070443935,0.09297936,97653.0,97652.0,0.4541]
[1735070444129,0.11997248,97659.0,97653.0,0.051229]
[1735070444442,0.11997248,97659.0,97658.0,0.051227]
[1735070445640,0.11997248,97663.0,97661.0,0.051225]
[1735070445829,0.11997248,97663.0,97662.0,0.3608]
[1735070447237,0.11997248,97664.0,97662.0,0.3608]
[1735070447842,0.11997248,97664.0,97662.0,0.3864299]
[1735070448041,0.00973773,97663.0,97662.0,0.3864299]
[1735070449242,0.01073773,97663.0,97662.0,0.3864299]
[1735070451648,0.01073884,97663.0,97662.0,0.3864299]
[1735070451839,0.00973884,97663.0,97662.0,0.3864299]
[1735070452841,0.13071132,97663.0,97662.0,0.3864299]
[1735070453446,6.119e-05,97666.0,97662.0,0.3864299]
[1735070453640,6.119e-05,97666.0,97665.0,0.412023]
[1735070457448,0.00153635,97677.0,97665.0,0.412023]
[1735070457449,0.00153635,97677.0,97676.0,0.051217]
[1735070459049,0.00353635,97677.0,97676.0,0.051217]
[1735070459752,0.002,97677.0,97676.0,0.051217]
[1735070460442,0.002,97677.0,97676.0,0.07639312]
[1735070460841,0.051211,97689.0,97682.0,0.051214]
[1735070461047,0.01555208,97695.0,97694.0,0.051208]
[1735070461348,0.00505075,97696.0,97694.0,0.051208]
[1735070461537,0.00153565,97700.0,97699.0,0.051205]
[1735070461739,0.00153565,97700.0,97699.0,0.412005]
[1735070462345,0.1493424,97716.0,97713.0,0.051198]
[1735070462751,0.1493424,97716.0,97709.0,0.3608]
[1735070462752,0.1493424,97716.0,97714.0,0.051197]
[1735070463148,0.1493424,97716.0,97715.0,0.0927]
[1735070463646,0.1493424,97716.0,97715.0,0.4535]
[1735070463854,0.0982,97730.0,97725.0,0.051191]
[1735070464150,0.0982,97730.0,97727.0,0.3608]
[1735070464343,0.1493424,97731.0,97727.0,0.3608]
[1735070465152,0.008,97730.0,97729.0,0.051189]
[1735070465549,0.0922,97745.0,97735.0,0.051186]
[1735070465947,0.1493424,97747.0,97735.0,0.051186]
[1735070465948,0.1493424,97747.0,97746.0,0.051181]
[1735070466545,0.17928147,97755.0,97746.0,0.051181]
[1735070466847,0.17928147,97755.0,97754.0,0.051176]
[1735070467350,0.00153484,97767.0,97762.0,0.051172]
[1735070467554,0.00153484,97767.0,97763.0,0.3608]
[1735070468051,0.00153484,97767.0,97764.0,0.411971]
[1735070468251,0.00153484,97767.0,97766.0,0.05117]
[1735070468443,0.00153484,97767.0,97751.0,0.3608]
[1735070468640,0.051172,97763.0,97762.0,0.001]
[1735070469950,0.051172,97763.0,97762.0,0.002]
[1735070470152,0.051172,97763.0,97762.0,0.001]
[1735070470347,0.00553484,97767.0,97754.0,0.3608]
[1735070470661,0.051176,97756.0,97754.0,0.3608]
[1735070471747,0.051172,97764.0,97754.0,0.411976]
[1735070471947,0.004,97756.0,97754.0,0.411976]
[1735070472852,0.004,97756.0,97754.0,0.412976]
[1735070473249,0.004,97756.0,97755.0,0.0966]
[1735070473452,0.004,97764.0,97761.0,0.051173]
[1735070473651,0.004,97764.0,97763.0,0.3608]
[1735070474156,0.00153484,97767.0,97763.0,0.3608]
[1735070474457,0.00153484,97767.0,97755.0,0.0966]
[1735070474651,0.051172,97764.0,97755.0,0.0966]
[1735070474857,0.051172,97764.0,97757.0,0.10001465]
[1735070475053,0.055172,97764.0,97757.0,0.10001465]
[1735070475259,0.055172,97764.0,97763.0,0.001]
[1735070475557,0.004,97764.0,97763.0,0.001]
[1735070475754,0.004,97764.0,97757.0,0.10001465]
[1735070476053,0.004,97764.0,97763.0,0.3608]
[1735070476259,0.004,97764.0,97763.0,0.3618]
[1735070476457,0.00153484,97767.0,97764.0,0.051171]
[1735070476654,0.004,97764.0,97763.0,0.413532]
[1735070476861,0.01559331,97782.0,97763.0,0.3618]
[1735070477152,0.01559331,97788.0,97775.0,0.051165]
[1735070477357,0.051163,97781.0,97775.0,0.10001465]
[1735070477659,0.05117,97767.0,97763.0,0.00152]
[1735070477856,0.09429826,97766.0,97759.0,0.02013191]
[1735070478158,0.00319826,97765.0,97760.0,0.051173]
[1735070478360,0.00319826,97764.0,97760.0,0.051173]
[1735070478657,0.00319826,97763.0,97761.0,0.051172]
[1735070478862,0.00319826,97762.0,97761.0,0.051172]
[1735070480850,0.00319826,97762.0,97756.0,0.00056]
[1735070480851,0.66399826,97762.0,97756.0,0.00056]
[1735070481056,0.051186,97736.0,97734.0,0.00153459]
[1735070481261,0.36399826,97735.0,97734.0,0.00153459]
[1735070481455,0.54949826,97735.0,97717.0,0.3608]
[1735070481649,0.3608,97726.0,97717.0,0.3608]
[1735070481862,0.00319826,97725.0,97717.0,0.3608]
[1735070482065,0.00319826,97724.0,97717.0,0.3608]
[1735070482251,0.00319826,97723.0,97719.0,0.051195]
[1735070482453,0.00319826,97722.0,97719.0,0.051195]
[1735070482759,0.051195,97719.0,97717.0,0.3608]
[1735070482962,0.051197,97715.0,97709.0,0.3608]
[1735070483158,0.051199,97711.0,97709.0,0.3608]
[1735070483458,0.01559331,97713.0,97700.0,0.10001465]
[1735070483647,0.00320055,97712.0,97690.0,0.46081465]
[1735070483847,0.051202,97706.0,97691.0,0.051209]
[1735070485461,0.051202,97706.0,97692.0,0.051209]
[1735070485762,0.051202,97706.0,97704.0,0.00253528]
[1735070485763,0.060202,97706.0,97704.0,0.00253528]
[1735070486454,0.058202,97706.0,97704.0,0.00253528]
[1735070486656,0.008,97706.0,97704.0,0.00253528]
[1735070486953,0.008,97706.0,97704.0,0.05373728]
[1735070487961,0.008,97706.0,97704.0,0.00253528]
[1735070488266,0.00640578,97705.0,97704.0,0.00253528]
[1735070489165,0.008,97706.0,97704.0,0.00253528]
[1735070489465,0.00641104,97705.0,97704.0,0.00253528]
[1735070489667,0.01441105,97705.0,97704.0,0.00253528]
[1735070490066,0.008,97705.0,97704.0,0.00253528]
[1735070490263,0.007,97705.0,97704.0,0.00253528]
[1735070491151,0.009,97706.0,97704.0,0.00253528]
[1735070491767,0.051201,97707.0,97704.0,0.00253528]
[1735070491768,0.007,97705.0,97704.0,0.00253528]
[1735070491961,0.008,97705.0,97704.0,0.00253528]
[1735070492371,0.001,97705.0,97704.0,0.00253528]
[1735070492555,0.008,97706.0,97704.0,0.00253528]
[1735070492868,0.007,97705.0,97704.0,0.00253528]
[1735070493357,0.008,97705.0,97704.0,0.00253528]
[1735070493964,0.02356908,97705.0,97704.0,0.00253528]
[1735070494265,0.008,97705.0,97704.0,0.00253528]
[1735070495363,0.308,97705.0,97689.0,0.3608]
[1735070495566,0.308,97705.0,97669.0,0.3608]
[1735070495567,0.05121,97690.0,97669.0,0.3608]
[1735070495756,0.051217,97677.0,97669.0,0.3608]
[1735070495959,0.00320083,97676.0,97669.0,0.3608]
[1735070496159,0.00320083,97675.0,97669.0,0.3608]
[1735070496454,0.00320083,97674.0,97669.0,0.3608]
[1735070496661,0.00320083,97673.0,97669.0,0.3608]
[1735070496968,0.051218,97676.0,97669.0,0.3608]
[1735070496969,0.00320083,97672.0,97669.0,0.3608]
[1735070497158,0.00320083,97671.0,97669.0,0.3608]
[1735070497354,0.00320083,97671.0,97670.0,0.05132651]
[1735070497964,0.00320083,97671.0,97670.0,0.06532651]
[1735070498560,0.01556051,97695.0,97670.0,0.01410651]
[1735070498757,0.01556051,97702.0,97693.0,0.051208]
[1735070498961,0.051201,97707.0,97693.0,0.051208]
[1735070499171,0.3608,97709.0,97699.0,0.3608]
[1735070499672,0.051203,97703.0,97699.0,0.3608]
[1735070500171,0.3608,97709.0,97699.0,0.3608]
[1735070500373,0.051205,97700.0,97699.0,0.3608]
[1735070501559,0.051207,97697.0,97684.0,0.051213]
[1735070501866,0.051207,97697.0,97685.0,0.1008]
[1735070502265,0.3608,97691.0,97685.0,0.1008]
[1735070502477,0.3608,97691.0,97677.0,0.051217]
[1735070502678,0.3608,97691.0,97684.0,0.003]
[1735070503264,0.3608,97691.0,97685.0,0.001]
[1735070503677,0.051212,97687.0,97685.0,0.001]
[1735070504273,0.051208,97694.0,97685.0,0.001]
[1735070504466,0.3608,97704.0,97685.0,0.001]
[1735070504467,0.01556051,97700.0,97692.0,0.051209]
[1735070504968,0.3608,97704.0,97694.0,0.051208]
[1735070505573,0.3608,97704.0,97696.0,0.3608]
[1735070505776,0.3608,97704.0,97697.0,0.0965]
[1735070506076,0.002,97700.0,97697.0,0.0965]
[1735070506371,0.3608,97704.0,97697.0,0.0965]
[1735070506677,0.415003,97704.0,97697.0,0.0965]
[1735070507077,0.43056351,97704.0,97697.0,0.0965]
[1735070507468,0.054203,97704.0,97697.0,0.0965]
[1735070507671,0.06976351,97704.0,97697.0,0.0965]
[1735070508374,0.055203,97704.0,97697.0,0.0965]
[1735070508576,0.07076351,97704.0,97697.0,0.0965]
[1735070508778,0.055203,97704.0,97697.0,0.0965]
[1735070509477,0.01556051,97702.0,97697.0,0.0965]
[1735070509776,0.01556051,97701.0,97697.0,0.0965]
[1735070510379,0.01556051,97701.0,97696.0,0.3608]
[1735070510683,0.051205,97699.0,97696.0,0.3608]
[1735070510873,0.00320076,97698.0,97696.0,0.3608]
[1735070511073,0.00320076,97697.0,97696.0,0.3608]
[1735070512082,0.00320076,97697.0,97691.0,0.051209]
[1735070512269,0.00320076,97696.0,97691.0,0.051209]
[1735070512470,0.00320076,97695.0,97691.0,0.051209]
[1735070512675,0.00320076,97694.0,97691.0,0.051209]
[1735070512876,0.00320076,97693.0,97691.0,0.051209]
[1735070513070,0.00320076,97692.0,97691.0,0.051209]
[1735070514370,0.00320076,97692.0,97691.0,0.052209]
[1735070514577,0.00420076,97692.0,97691.0,0.052209]
[1735070515785,0.00420076,97692.0,97691.0,0.001]
[1735070516490,0.001,97692.0,97691.0,0.001]
[1735070516782,0.05121,97691.0,97678.0,0.54443341]
[1735070516975,0.00420116,97692.0,97678.0,0.54443341]
[1735070516976,0.051215,97680.0,97678.0,0.54443341]
[1735070517182,0.051215,97680.0,97678.0,0.18363341]
[1735070517387,0.00320121,97679.0,97678.0,0.18363341]
[1735070518090,0.00320121,97679.0,97678.0,0.004]
[1735070518281,0.00320121,97679.0,97678.0,0.009]
[1735070519482,0.00320152,97679.0,97678.0,0.009]
[1735070521190,0.66400152,97679.0,97678.0,0.00596397]
[1735070521391,0.05122,97671.0,97670.0,0.00010651]
[1735070521694,0.41522152,97671.0,97670.0,0.00010651]
[1735070522487,0.41522152,97671.0,97654.0,0.18363341]
[1735070522488,0.66409771,97671.0,97654.0,0.18363341]
[1735070522699,0.412028,97655.0,97654.0,0.18363341]
[1735070522995,0.41522952,97655.0,97639.0,0.52771341]
[1735070523197,0.051235,97642.0,97639.0,0.52771341]
[1735070523498,0.051236,97640.0,97639.0,0.18363341]
[1735070523686,0.05443752,97640.0,97639.0,0.18363341]
[1735070523991,0.04943752,97640.0,97639.0,0.18363341]
[1735070524484,0.34943887,97640.0,97639.0,0.009]
[1735070524684,0.051248,97618.0,97616.0,0.3608]
[1735070525096,9.885e-05,97617.0,97613.0,0.18362004]
[1735070525286,0.05125,97614.0,97613.0,0.18362004]
[1735070525906,0.41205,97614.0,97613.0,0.18362004]
[1735070526205,0.41205,97614.0,97596.0,0.0966]
[1735070526206,0.051256,97602.0,97596.0,0.0966]
[1735070526712,0.050256,97602.0,97596.0,0.0966]
[1735070527307,0.051256,97602.0,97600.0,0.10112088]
[1735070527606,0.06679362,97602.0,97600.0,0.10112088]
[1735070527814,0.051256,97602.0,97600.0,0.10112088]
[1735070528009,0.001,97602.0,97600.0,0.15237788]
[1735070528317,0.01563647,97617.0,97616.0,0.051249]
[1735070528511,9.885e-05,97617.0,97616.0,0.412049]
[1735070528813,0.00522392,97617.0,97616.0,0.412049]
[1735070529211,9.885e-05,97617.0,97616.0,0.412049]
[1735070529906,0.00512507,97621.0,97616.0,0.74212126]
[1735070530101,0.00153685,97641.0,97634.0,0.051239]
[1735070530303,0.00512507,97640.0,97634.0,0.051239]
[1735070530510,0.00512507,97639.0,97634.0,0.051239]
[1735070530711,0.00512507,97638.0,97634.0,0.051239]
[1735070530915,0.00512507,97637.0,97634.0,0.051239]
[1735070531106,0.00512507,97636.0,97634.0,0.051239]
[1735070531408,0.00553685,97641.0,97635.0,0.1035]
[1735070531615,0.05636026,97640.0,97635.0,0.1035]
[1735070531813,0.00512426,97639.0,97635.0,0.1035]
[1735070532111,0.004,97637.0,97635.0,0.1035]
[1735070532312,0.00512426,97636.0,97635.0,0.1035]
[1735070533403,0.00512428,97636.0,97625.0,0.051244]
[1735070533710,0.051242,97629.0,97624.0,0.3608]
[1735070534207,0.051243,97628.0,97621.0,0.2072]
[1735070534410,0.051246,97622.0,97621.0,0.1047]
[1735070534605,0.051251,97612.0,97611.0,0.1025]
[1735070534811,0.051247,97620.0,97611.0,0.1025]
[1735070535404,0.3608,97627.0,97611.0,0.1025]
[1735070535614,0.051247,97619.0,97611.0,0.1025]
[1735070536316,0.051248,97618.0,97611.0,0.1025]
[1735070536520,0.001,97620.0,97611.0,0.1025]
[1735070536819,0.051251,97613.0,97611.0,0.1025]